fUSD/lending_fUSD_20251213
["ID","MTS","AMOUNT","RATE_DAILY","PERIOD"]
[398446330,1765660238022,-684.03103583,0.00016029,2]
[398446331,1765660238032,-684.03103583,0.00016029,2]
[398446332,1765660238042,-684.03103583,0.00016029,2]
[398446333,1765660238052,-684.03103583,0.00016029,2]
[398446334,1765660238062,-684.03103583,0.00016029,2]
[398446335,1765660238071,-684.03103583,0.00016029,2]
[398446336,1765660238080,-684.03103583,0.00016029,2]
[398446337,1765660238090,-684.03103583,0.00016029,2]
[398446338,1765660238099,-684.03103583,0.00016029,2]
[398446339,1765660238109,-684.03103583,0.00016029,2]
[398446340,1765660238119,-684.03103583,0.00016029,2]
[398446341,1765660238129,-684.03103583,0.00016029,2]
[398446342,1765660238139,-684.03103583,0.00016029,2]
[398446344,1765660238149,-684.03103583,0.00016029,2]
[398446346,1765660238159,-684.03103583,0.00016029,2]
[398446348,1765660238169,-684.03103583,0.00016029,2]
[398446349,1765660238179,-684.03103583,0.00016029,2]
[398446350,1765660238190,-684.03103583,0.00016029,2]
[398446352,1765660238200,-684.03103583,0.00016029,2]
[398446354,1765660238210,-684.03103583,0.00016029,2]
[398446355,1765660238220,-684.03103583,0.00016029,2]
[398446356,1765660238230,-684.03103583,0.00016029,2]
[398446357,1765660238241,-684.03103583,0.00016029,2]
[398446358,1765660238252,-684.03103583,0.00016029,2]
[398446359,1765660238262,-684.03103583,0.00016029,2]
[398446360,1765660238271,-684.03103583,0.00016029,2]
[398446361,1765660238281,-684.03103583,0.00016029,2]
[398446362,1765660238291,-684.03103583,0.00016029,2]
[398446363,1765660238302,-684.03103583,0.00016029,2]
[398446364,1765660238312,-684.03103583,0.00016029,2]
[398446365,1765660238321,-684.03103583,0.00016029,2]
[398446366,1765660238331,-684.03103583,0.00016029,2]
[398446367,1765660238341,-684.03103583,0.00016029,2]
[398446368,1765660238350,-684.03103583,0.00016029,2]
[398446369,1765660238360,-684.03103583,0.00016029,2]
[398446370,1765660238369,-684.03103583,0.00016029,2]
[398446371,1765660238378,-684.03103583,0.00016029,2]
[398446372,1765660238388,-684.03103583,0.00016029,2]
[398446373,1765660238402,-684.03103583,0.00016029,2]
[398446374,1765660238412,-684.03103583,0.00016029,2]
[398446375,1765660238422,-684.03103583,0.00016029,2]
[398446376,1765660238432,-676.66820176,0.00016029,2]
[398446377,1765660238442,-676.66820176,0.00016029,2]
[398446378,1765660238452,-676.66820176,0.00016029,2]
[398446379,1765660238462,-676.66820176,0.00016029,2]
[398446380,1765660238471,-583.7381397,0.00016029,2]
[398446381,1765660238484,-92.93006206,0.00016029,2]
[398446382,1765660238494,-676.66820176,0.00016029,2]
[398446383,1765660238504,-676.66820176,0.00016029,2]
[398446384,1765660238514,-217.41784637,0.00016029,2]
[398446385,1765660238526,-459.25035539,0.00016029,2]
[398446386,1765660238535,-676.66820176,0.00016029,2]
[398446387,1765660238545,-676.66820176,0.00016029,2]
[398446388,1765660238555,-676.66820176,0.00016029,2]
[398446389,1765660238565,-676.66820176,0.00016029,2]
[398446390,1765660238575,-26.97683757,0.00016029,2]
[398446410,1765660239963,-649.69136419,0.00016029,2]
[398446411,1765660239973,-676.66820176,0.00016029,2]
[398446412,1765660239982,-676.66820176,0.00016029,2]
[398446413,1765660239992,-612.95464836,0.00016029,2]
[398446414,1765660240004,-63.7135534,0.00016029,2]
[398446415,1765660240014,-676.66820176,0.00016029,2]
[398446416,1765660240023,-676.66820176,0.00016029,2]
[398446417,1765660240033,-676.17919352,0.00016029,2]
[398446418,1765660240327,-0.48900824,0.00016029,2]
[398446419,1765660240337,-676.66820176,0.00016029,2]
[398446420,1765660240346,-676.66820176,0.00016029,2]
[398446421,1765660240356,-372.37720257,0.00016029,2]
[398446422,1765660240368,-304.29099919,0.00016029,2]
[398446423,1765660240380,-204.5812017,0.00016029,2]
[398446424,1765660240393,-472.08700006,0.00016029,2]
[398446425,1765660240402,-676.66820176,0.00016029,2]
[398446426,1765660240412,-676.66820176,0.00016029,2]
[398446427,1765660240422,-676.66820176,0.00016029,2]
[398446428,1765660240432,-676.66820176,0.00016029,2]
[398446430,1765660240442,-676.66820176,0.00016029,2]
[398446431,1765660240451,-676.66820176,0.00016029,2]
[398446432,1765660240461,-283.45378938,0.00016029,2]
[398446433,1765660240472,-393.21441238,0.00016029,2]
[398446434,1765660240482,-605.78558762,0.0001603,2]
[398446435,1765660240498,-287.74441238,0.0001603,2]
[398446436,1765660240508,-489.15868513,0.00016034,2]
[398446438,1765660240520,-10.84131487,0.00016034,2]
[398446439,1765660240529,-151.0,0.00016034,2]
[398446440,1765660240540,-211.47062833,0.00016036,2]
[398446441,1765660240550,-1000.0,0.00016037,2]
[398446442,1765660240559,-300.0,0.00016087,2]
[398446443,1765660240569,-578.20924308,0.00016087,2]
[398446444,1765660240582,-223.58504424,0.00016087,2]
[398446445,1765660240623,-771.41495576,0.00016087,2]
[398446446,1765660240633,-352.61826565,0.00016087,2]
[398446447,1765660240642,-151.0,0.00016087,2]
[398446448,1765660240651,-1000.0,0.00016087,2]
[398446449,1765660240661,-574.12855637,0.00016087,2]
[398446450,1765660240671,-151.80375574,0.00016087,2]
[398446451,1765660240680,-1000.0,0.00016087,2]
[398446452,1765660240689,-1000.0,0.00016087,2]
[398446453,1765660240699,-1000.0,0.00016087,2]
[398446454,1765660240709,-1000.0,0.00016087,2]
[398446455,1765660240719,-216.52973342,0.00016087,2]
[398446456,1765660240728,-1000.0,0.00016087,2]
[398446457,1765660240738,-1000.0,0.00016087,2]
[398446458,1765660240748,-1000.0,0.00016087,2]
[398446459,1765660240760,-1000.0,0.00016087,2]
[398446460,1765660240773,-1000.0,0.00016087,2]
[398446461,1765660240782,-1000.0,0.00016087,2]
[398446462,1765660240792,-1000.0,0.00016087,2]
[398446463,1765660240802,-719.04747942,0.00016087,2]
[398446464,1765660240812,-1000.0,0.00016087,2]
[398446465,1765660240822,-1000.0,0.00016087,2]
[398446466,1765660240831,-1000.0,0.00016087,2]
[398446467,1765660240841,-300.0,0.00016087,2]
[398446468,1765660240850,-1000.0,0.00016087,2]
[398446469,1765660240860,-160.61,0.00016115,2]
[398446470,1765660240869,-150.0,0.00016137,2]
[398446471,1765660240878,-150.0,0.00016137,2]
[398446472,1765660240888,-995.0,0.00016142,2]
[398446473,1765660240897,-5081.1594468,0.00016155,2]
[398446474,1765660240906,-166.66,0.00016171,2]
[398446475,1765660240916,-995.0,0.00016197,2]
[398446476,1765660240925,-995.0,0.00016252,2]
[398446477,1765660240935,-150.0,0.00016258,2]
[398446478,1765660240944,-893.53,0.00016304,2]
[398446479,1765660240953,-995.0,0.00016307,2]
[398446480,1765660240965,-500.0,0.00016308,2]
[398446481,1765660240974,-995.0,0.00016362,2]
[398446482,1765660240983,-5081.1594468,0.00016373,2]
[398446483,1765660240992,-995.0,0.00016417,2]
[398446484,1765660241001,-8668.48,0.00016428,2]
[398446485,1765660241010,-500.0,0.00016438,2]
[398446486,1765660241019,-500.0,0.00016438,2]
[398446487,1765660241028,-500.0,0.00016438,2]
[398446488,1765660241037,-500.0,0.00016438,2]
[398446489,1765660241046,-500.0,0.00016438,2]
[398446490,1765660241602,-500.0,0.00016438,2]
[398446491,1765660241634,-500.0,0.00016438,2]
[398446492,1765660241643,-500.0,0.00016438,2]
[398446493,1765660241653,-500.0,0.00016438,2]
[398446494,1765660241663,-500.0,0.00016438,2]
[398446495,1765660241672,-500.0,0.00016438,2]
[398446496,1765660241682,-500.0,0.00016438,2]
[398446497,1765660241692,-500.0,0.00016438,2]
[398446498,1765660241701,-500.0,0.00016438,2]
[398446499,1765660241710,-500.0,0.00016438,2]
[398446500,1765660241720,-500.0,0.00016438,2]
[398446501,1765660241734,-500.0,0.00016438,2]
[398446502,1765660241744,-500.0,0.00016438,2]
[398446503,1765660241756,-325.76962857,0.00016438,2]
[398446504,1765660241766,-500.0,0.00016438,2]
[398446505,1765660241775,-500.0,0.00016438,2]
[398446506,1765660241785,-500.0,0.00016438,2]
[398446507,1765660241797,-500.0,0.00016438,2]
[398446508,1765660241808,-500.0,0.00016438,2]
[398446509,1765660241818,-500.0,0.00016438,2]
[398446510,1765660241828,-500.0,0.00016438,2]
[398446511,1765660241838,-500.0,0.00016438,2]
[398446512,1765660241847,-500.0,0.00016438,2]
[398446513,1765660241858,-152.58,0.00016438,2]
[398446514,1765660241868,-8187.02,0.00016438,2]
[398446515,1765660241877,-600.0,0.00016438,2]
[398446516,1765660241887,-150.0,0.00016438,2]
[398446517,1765660241897,-995.0,0.00016472,2]
[398446518,1765660241907,-166.66,0.00016485,2]
[398446519,1765660241916,-150.0,0.00016501,2]
[398446520,1765660241926,-995.0,0.00016527,2]
[398446521,1765660241936,-150.0,0.00016562,2]
[398446522,1765660241946,-893.53,0.00016578,2]
[398446523,1765660241955,-500.0,0.00016582,2]
[398446524,1765660241965,-5081.1594468,0.00016591,2]
[398446525,1765660241974,-151.36,0.00016613,2]
[398446526,1765660241984,-150.0,0.00016613,2]
[398446527,1765660241993,-150.0,0.00016613,2]
[398446528,1765660242003,-150.0,0.00016613,2]
[398446529,1765660242013,-500.0,0.00016613,2]
[398446530,1765660242022,-1035.0,0.00016613,2]
[398446531,1765660242031,-500.0,0.00016613,2]
[398446532,1765660242041,-150.0,0.00016613,2]
[398446533,1765660242051,-150.0,0.00016613,2]
[398446534,1765660242060,-500.0,0.00016613,2]
[398446535,1765660242070,-150.0,0.00016613,2]
[398446536,1765660242079,-202.57,0.00016657,2]
[398446537,1765660242090,-2124.38453134,0.0001666,2]
[398446538,1765660242100,-1254.0,0.000167,2]
[398446539,1765660242110,-600.0,0.00016712,2]
[398446540,1765660242119,-150.0,0.00016744,2]
[398446541,1765660242129,-150.0,0.0001675,2]
[398446542,1765660242139,-150.0,0.0001675,2]
[398446543,1765660242148,-150.0,0.0001675,2]
[398446544,1765660242158,-500.0,0.0001675,2]
[398446545,1765660242169,-1035.0,0.0001675,2]
[398446546,1765660242179,-500.0,0.0001675,2]
[398446547,1765660242188,-150.0,0.0001675,2]
[398446548,1765660242198,-500.0,0.0001675,2]
[398446549,1765660242208,-193.66140149,0.0001675,2]
[398446550,1765660242218,-5081.1594468,0.00016809,2]
[398446551,1765660242228,-300.0,0.00016816,2]
[398446552,1765660242239,-893.53,0.00016852,2]
[398446553,1765660242248,-500.0,0.00016856,2]
[398446554,1765660242258,-2000.0,0.00016863,2]
[398446555,1765660242268,-200.0,0.00016863,2]
[398446556,1765660242278,-200.0,0.00016864,2]
[398446557,1765660242287,-2000.0,0.00016864,2]
[398446558,1765660242297,-200.0,0.00016864,2]
[398446559,1765660242307,-200.0,0.00016864,2]
[398446560,1765660242319,-200.0,0.00016887,2]
[398446561,1765660242329,-150.0,0.00016887,2]
[398446562,1765660242338,-500.0,0.00016887,2]
[398446563,1765660242347,-150.0,0.00016887,2]
[398446564,1765660242357,-1035.0,0.00016887,2]
[398446565,1765660242367,-500.0,0.00016887,2]
[398446566,1765660242376,-150.0,0.00016887,2]
[398446567,1765660242386,-500.0,0.00016887,2]
[398446568,1765660242396,-151.0,0.00016887,2]
[398446569,1765660242406,-151.0,0.00016887,2]
[398446570,1765660242416,-354.54734374,0.000169,2]
[398446571,1765660242426,-1439.0,0.000169,2]
[398446572,1765660242435,-500.0,0.00016932,2]
[398446573,1765660242445,-500.0,0.00016932,2]
[398446574,1765660242455,-160.61,0.00016963,2]
[398446575,1765660242466,-500.0,0.00016973,2]
[398446576,1765660242475,-501.32368526,0.00016973,2]
[398446577,1765660242484,-500.0,0.00016973,2]
[398446578,1765660242494,-500.0,0.00016973,2]
[398446579,1765660242503,-500.0,0.00016973,2]
[398446580,1765660242513,-502.09208963,0.00016973,2]
[398446581,1765660242522,-556.87569377,0.00016973,2]
[398446582,1765660242531,-500.0,0.00016973,2]
[398446583,1765660242541,-5497.0,0.0001698,2]
[398446584,1765660242550,-23030.7810095,0.0001698,2]
[398446585,1765660242560,-49137.2045281,0.0001698,2]
[398446586,1765660242569,-3068.345254,0.0001698,2]
[398446587,1765660242579,-151.0,0.0001698,2]
[398446588,1765660242590,-213.682228,0.0001698,2]
[398446589,1765660242599,-151.0,0.0001698,2]
[398446590,1765660242609,-151.0,0.0001698,2]
[398446591,1765660242618,-151.0,0.0001698,2]
[398446592,1765660242628,-151.0,0.0001698,2]
[398446593,1765660242638,-151.0,0.0001698,2]
[398446594,1765660242647,-151.0,0.0001698,2]
[398446595,1765660242657,-151.0,0.0001698,2]
[398446596,1765660242667,-151.0,0.0001698,2]
[398446597,1765660242677,-151.0,0.0001698,2]
[398446598,1765660242687,-7826.8834992,0.0001698,2]
[398446599,1765660242696,-165.041741,0.0001698,2]
[398446600,1765660242706,-244.224386,0.0001698,2]
[398446601,1765660242715,-262.582122,0.0001698,2]
[398446602,1765660242724,-151.0,0.0001698,2]
[398446603,1765660242734,-151.0,0.0001698,2]
[398446604,1765660242744,-151.0,0.0001698,2]
[398446605,1765660242756,-173.792706,0.0001698,2]
[398446606,1765660242766,-173.792706,0.0001698,2]
[398446607,1765660242776,-151.0,0.0001698,2]
[398446608,1765660242785,-841.236857,0.0001698,2]
[398446609,1765660242795,-841.236857,0.0001698,2]
[398446610,1765660242805,-841.236857,0.0001698,2]
[398446611,1765660242814,-841.236857,0.0001698,2]
[398446612,1765660242823,-152.134937,0.0001698,2]
[398446613,1765660242833,-151.0,0.0001698,2]
[398446614,1765660242843,-151.0,0.0001698,2]
[398446615,1765660242853,-1066.455804,0.0001698,2]
[398446616,1765660242862,-1066.455804,0.0001698,2]
[398446617,1765660242871,-1066.455804,0.0001698,2]
[398446618,1765660242881,-1066.455804,0.0001698,2]
[398446619,1765660242890,-151.0,0.0001698,2]
[398446620,1765660242900,-151.0,0.0001698,2]
[398446622,1765660242909,-151.0,0.0001698,2]
[398446624,1765660242919,-701.924468,0.0001698,2]
[398446626,1765660242929,-151.0,0.0001698,2]
[398446628,1765660242938,-701.924468,0.0001698,2]
[398446629,1765660242948,-151.0,0.0001698,2]
[398446630,1765660242959,-701.924468,0.0001698,2]
[398446631,1765660242969,-151.0,0.0001698,2]
[398446632,1765660242980,-156.975274,0.0001698,2]
[398446633,1765660242990,-701.924468,0.0001698,2]
[398446634,1765660243000,-151.0,0.0001698,2]
[398446635,1765660243011,-151.0,0.0001698,2]
[398446636,1765660243026,-1065.106697,0.0001698,2]
[398446637,1765660243036,-1065.106697,0.0001698,2]
[398446638,1765660243046,-1065.106697,0.0001698,2]
[398446639,1765660243056,-1065.106697,0.0001698,2]
[398446640,1765660243067,-151.0,0.0001698,2]
[398446641,1765660243077,-151.0,0.0001698,2]
[398446642,1765660243088,-151.0,0.0001698,2]
[398446643,1765660243097,-151.0,0.0001698,2]
[398446644,1765660243107,-811.208853,0.0001698,2]
[398446645,1765660243117,-811.208853,0.0001698,2]
[398446646,1765660243127,-151.0,0.0001698,2]
[398446647,1765660243138,-811.208853,0.0001698,2]
[398446648,1765660243149,-811.208853,0.0001698,2]
[398446649,1765660243159,-151.0,0.0001698,2]
[398446650,1765660243169,-151.0,0.0001698,2]
[398446651,1765660243180,-151.0,0.0001698,2]
[398446652,1765660243190,-151.0,0.0001698,2]
[398446653,1765660243201,-627.48074,0.0001698,2]
[398446654,1765660243211,-627.48074,0.0001698,2]
[398446655,1765660243222,-627.48074,0.0001698,2]
[398446656,1765660243232,-627.48074,0.0001698,2]
[398446657,1765660243243,-151.0,0.0001698,2]
[398446658,1765660243253,-793.558844,0.0001698,2]
[398446659,1765660243264,-793.558844,0.0001698,2]
[398446660,1765660243273,-793.558844,0.0001698,2]
[398446661,1765660243283,-793.558844,0.0001698,2]
[398446662,1765660243293,-872.061822,0.0001698,2]
[398446663,1765660243303,-872.061822,0.0001698,2]
[398446665,1765660243313,-872.061822,0.0001698,2]
[398446666,1765660243323,-872.061822,0.0001698,2]
[398446667,1765660243333,-1740.932245,0.0001698,2]
[398446668,1765660243342,-1740.932245,0.0001698,2]
[398446669,1765660243352,-1740.932245,0.0001698,2]
[398446670,1765660243362,-383.09051319,0.0001698,2]
[398446671,1765660243378,-765.44534152,0.0001698,2]
[398446672,1765660243391,-592.39639029,0.0001698,2]
[398446673,1765660243401,-151.0,0.0001698,2]
[398446674,1765660243414,-151.0,0.0001698,2]
[398446675,1765660243424,-160.956808,0.0001698,2]
[398446676,1765660243434,-323.25,0.0001698,2]
[398446678,1765660243444,-323.25,0.0001698,2]
[398446680,1765660243453,-323.25,0.0001698,2]
[398446681,1765660243463,-307.89680171,0.0001698,2]
[398446682,1765660243838,-15.35319829,0.0001698,2]
[398446683,1765660243848,-500.0,0.00016986,2]
[398446684,1765660243857,-500.0,0.00016986,2]
[398446685,1765660243867,-600.0,0.00016986,2]
[398446686,1765660243876,-150.0,0.00016986,2]
[398446687,1765660243886,-150.0,0.00016986,2]
[398446688,1765660243896,-150.0,0.00016986,2]
[398446689,1765660243906,-150.0,0.00016986,2]
[398446690,1765660243916,-150.0,0.00016986,2]
[398446691,1765660243926,-150.0,0.00016986,2]
[398446692,1765660243936,-717.34,0.00016986,2]
[398446693,1765660243946,-153.375814,0.0001699,2]
[398446694,1765660243955,-500.0,0.00016999,2]
[398446695,1765660243965,-500.0,0.00016999,2]
[398446696,1765660243976,-3564.58980466,0.00017,2]
[398446697,1765660243995,-485.74255521,0.00017,2]
[398446698,1765660244045,-316.16713008,0.00017,2]
[398446699,1765660244056,-1172.63317421,0.00017,2]
[398446701,1765660245886,-556.3341522,0.00017,2]
[398446702,1765660245941,-72976.43832432,0.00017,2]
[398446703,1765660245952,-476.35224409,0.00017,2]
[398446704,1765660246050,-599.71682882,0.00017,2]
[398446705,1765660246061,-621.06999944,0.00017,2]
[398446706,1765660246109,-58852.71511589,0.00017,2]
[398446707,1765660246121,-547.86314549,0.00017,2]
[398446708,1765660246133,-8507.24236572,0.00017,2]
[398446709,1765660246144,-311.95472696,0.00017,2]
[398446712,1765660269402,1947.89239209,0.000225,120]
[398446713,1765660484382,3031.4991551,0.00015837,2]
[398446714,1765660494773,419.04245175,0.00015837,2]
[398446715,1765660518531,150.0,0.000158,2]
[398446716,1765660567964,219.38471759,0.00015833,2]
[398446717,1765660690069,366.66214529,0.00015837,2]
[398446718,1765660697329,2158.7235,0.00015834,2]
[398446719,1765660766556,10000.01,0.00015777,2]
[398446720,1765660766581,8722.65,0.00015777,2]
[398446721,1765660824385,9699.15039633,0.00015837,2]
[398446722,1765660865975,300.85960367,0.00015834,2]
[398446723,1765660865996,2199.14039633,0.00015834,2]
[398446724,1765660868106,191.606743,7.945e-05,2]
[398446725,1765660869471,282.40564425,0.00015833,2]
[398446726,1765660883842,2728.34923959,0.00015837,2]
[398446727,1765660894851,320.82937712,0.00015837,2]
[398446728,1765660944892,500.0,0.000175,30]
[398446729,1765660945231,877.52238,0.00017,30]
[398446730,1765660999108,250.0,0.00015681,2]
[398446732,1765661091877,280.72570498,0.00015837,2]
[398446733,1765661128100,150.0,0.00015288,2]
[398446734,1765661142221,208.06,0.00015698,2]
[398446735,1765661154745,5536.39004615,0.000149,2]
[398446736,1765661182640,999.0,0.00015699,3]
[398446738,1765661235545,5323.14518511,0.0001305,2]
[398446742,1765661270095,2455.51431564,0.00015834,2]
[398446743,1765661295872,245.63499184,0.00015834,2]
[398446745,1765661312499,146599.19637759,0.00015834,2]
[398446746,1765661320883,-3345.51124875,0.00015834,2]
[398446747,1765661320916,-10000.01,0.00015834,2]
[398446748,1765661321011,-10000.01,0.00015834,2]
[398446749,1765661321117,-10000.01,0.00015834,2]
[398446750,1765661321225,-10000.01,0.00015834,2]
[398446751,1765661321337,-10000.01,0.00015834,2]
[398446752,1765661323473,-10000.01,0.00015834,2]
[398446753,1765661323562,-10000.01,0.00015834,2]
[398446754,1765661323855,-10000.01,0.00015834,2]
[398446755,1765661332719,-10000.01,0.00015834,2]
[398446756,1765661332939,-10000.01,0.00015834,2]
[398446757,1765661333030,-10000.01,0.00015834,2]
[398446758,1765661333203,-10000.01,0.00015834,2]
[398446759,1765661333510,-936.82642634,0.00015834,2]
[398446760,1765661333535,-8126.35714732,0.00015834,2]
[398446761,1765661335770,4972.020673,0.00015755,2]
[398446762,1765661347687,5027.989327,7.945e-05,2]
[398446763,1765661347717,2331.615475,7.945e-05,2]
[398446781,1765661388964,1923.72,0.00015701,2]
[398446811,1765661432130,-195.0,0.00015917,2]
[398446813,1765661432140,-250.0,0.00015918,2]
[398446815,1765661432149,-192.6,0.00015925,2]
[398446817,1765661432159,-300.0,0.00015932,2]
[398446819,1765661432168,-893.53,0.00015933,2]
[398446821,1765661432181,-500.0,0.00015933,2]
[398446823,1765661432190,-500.0,0.00015933,2]
[398446825,1765661432198,-500.0,0.00015933,2]
[398446827,1765661432208,-500.0,0.00015933,2]
[398446828,1765661432217,-500.0,0.00015933,2]
[398446829,1765661432226,-500.0,0.00015933,2]
[398446830,1765661432235,-500.0,0.00015933,2]
[398446832,1765661432244,-500.0,0.00015933,2]
[398446834,1765661432253,-500.0,0.00015933,2]
[398446837,1765661432263,-500.0,0.00015933,2]
[398446840,1765661432273,-500.0,0.00015933,2]
[398446843,1765661432282,-500.0,0.00015933,2]
[398446859,1765661432291,-500.0,0.00015933,2]
[398446860,1765661432729,-500.0,0.00015933,2]
[398446861,1765661432743,-500.0,0.00015933,2]
[398446862,1765661432753,-500.0,0.00015933,2]
[398446863,1765661432771,-554.39666863,0.00015933,2]
[398446864,1765661432781,-500.0,0.00015933,2]
[398446865,1765661432790,-500.0,0.00015933,2]
[398446866,1765661432799,-500.0,0.00015933,2]
[398446867,1765661432813,-500.0,0.00015933,2]
[398446868,1765661432822,-500.0,0.00015933,2]
[398446869,1765661432833,-500.0,0.00015933,2]
[398446870,1765661432843,-500.0,0.00015933,2]
[398446871,1765661432852,-500.0,0.00015933,2]
[398446872,1765661432862,-500.0,0.00015933,2]
[398446873,1765661432871,-500.0,0.00015933,2]
[398446874,1765661432881,-500.0,0.00015933,2]
[398446875,1765661432891,-500.0,0.00015933,2]
[398446876,1765661432902,-500.0,0.00015933,2]
[398446877,1765661432912,-309.22755918,0.00015933,2]
[398446878,1765661432921,-500.0,0.00015933,2]
[398446879,1765661432931,-500.0,0.00015933,2]
[398446880,1765661432940,-500.0,0.00015933,2]
[398446881,1765661432950,-500.0,0.00015933,2]
[398446882,1765661432960,-500.0,0.00015933,2]
[398446883,1765661432969,-500.0,0.00015933,2]
[398446884,1765661432979,-500.0,0.00015933,2]
[398446885,1765661432989,-500.0,0.00015933,2]
[398446886,1765661432998,-200.0,0.00015933,2]
[398446887,1765661433009,-500.0,0.00015933,2]
[398446888,1765661433019,-500.0,0.00015933,2]
[398446889,1765661433029,-500.0,0.00015934,2]
[398446890,1765661433039,-1000.0,0.00015937,2]
[398446891,1765661433049,-22067.63215241,0.00016,4]
[398446892,1765661433059,-152.66,0.00016028,2]
[398446893,1765661433068,-152.18,0.00016028,2]
[398446894,1765661433078,-150.33,0.00016028,2]
[398446895,1765661433087,-152.02,0.00016028,2]
[398446896,1765661433096,-151.69,0.00016028,2]
[398446897,1765661433106,-500.0,0.00016036,2]
[398446898,1765661433115,-2455.51431559,0.00016064,2]
[398446899,1765661433125,-200.0,0.00016088,2]
[398446900,1765661433139,-250.0,0.00016116,2]
[398446901,1765661433149,-1000.0,0.00016149,2]
[398446902,1765661433158,-151.0,0.00016149,2]
[398446903,1765661433168,-1000.0,0.00016149,2]
[398446904,1765661433178,-1000.0,0.00016149,2]
[398446905,1765661433188,-1000.0,0.00016149,2]
[398446906,1765661433198,-1000.0,0.00016149,2]
[398446907,1765661433208,-1000.0,0.00016149,2]
[398446908,1765661433218,-1000.0,0.00016149,2]
[398446909,1765661433229,-1000.0,0.00016149,2]
[398446910,1765661433238,-1000.0,0.00016149,2]
[398446911,1765661433248,-1000.0,0.00016149,2]
[398446912,1765661433257,-1000.0,0.00016149,2]
[398446913,1765661433267,-300.0,0.00016149,2]
[398446914,1765661433277,-1000.0,0.00016149,2]
[398446915,1765661433286,-578.20924308,0.00016149,2]
[398446916,1765661433296,-5000.0,0.000162,5]
[398446917,1765661433306,-893.53,0.00016207,2]
[398446918,1765661433316,-561.77767303,0.00016208,2]
[398446919,1765661433325,-2455.51431559,0.00016293,2]
[398446920,1765661433335,-500.0,0.00016438,2]
[398446921,1765661433345,-500.0,0.00016438,2]
[398446922,1765661433354,-382.57696286,0.00016438,2]
[398446923,1765661433364,-600.0,0.00016438,2]
[398446924,1765661433374,-893.53,0.00016481,2]
[398446925,1765661433384,-2455.51431559,0.00016523,2]
[398446926,1765661433394,-4814.9644323,0.000166,2]
[398446927,1765661433404,-276.57223857,0.00016613,2]
[398446928,1765661433415,-200.0,0.00016613,2]
[398446929,1765661433425,-156.45165699,0.00016613,2]
[398446930,1765661433434,-212.64172486,0.00016613,2]
[398446931,1765661433444,-500.0,0.00016613,2]
[398446932,1765661433454,-150.0,0.00016613,2]
[398446933,1765661433464,-905.0,0.00016613,2]
[398446934,1765661433474,-500.0,0.00016613,2]
[398446935,1765661433484,-500.0,0.00016613,2]
[398446936,1765661433493,-150.0,0.00016613,2]
[398446937,1765661433503,-202.60109989,0.00016613,2]
[398446938,1765661433513,-1416.25635423,0.0001666,2]
[398446939,1765661433523,-150.0,0.000167,2]
[398446940,1765661433533,-600.0,0.00016712,2]
[398446941,1765661433543,-245.63499184,0.00016719,2]
[398446942,1765661433552,-500.0,0.0001674,2]
[398446943,1765661433562,-500.0,0.0001675,2]
[398446944,1765661433572,-905.0,0.0001675,2]
[398446945,1765661433581,-500.0,0.0001675,2]
[398446946,1765661433591,-500.0,0.0001675,2]
[398446947,1765661433601,-150.0,0.0001675,2]
[398446948,1765661433614,-2455.51431559,0.00016752,2]